[Event "Titled Tuesday Blitz February 07 Early 2023"]
[White "Yeritsyan, Hayk"]
[Black "ritanovikova"]
[WhiteFideId "13307320"]
[WhiteElo "2241"]
[BlackElo "2202"]
[Result "1-0"]
[Round "02"]
[TimeControl "180+2"]
[Date "2023.02.07"]
[WhiteClock "0:01:32"]
[BlackClock "0:01:10"]

1. e4 {[%clk 0:02:45]}  d5 {[%clk 0:02:59]} 2. exd5 {[%clk 0:02:44]}  Qxd5 {[%clk 0:03:00]} 3. Nc3 {[%clk 0:02:44]}  Qd6 {[%clk 0:03:00]} 4. Bc4 {[%clk 0:02:44]}  Nf6 {[%clk 0:03:00]} 5. d4 {[%clk 0:02:44]}  Bf5 {[%clk 0:03:00]} 6. Nf3 {[%clk 0:02:44]}  c6 {[%clk 0:03:00]} 7. Ne5 {[%clk 0:02:45]}  Nbd7 {[%clk 0:02:58]} 8. Nxf7 {[%clk 0:02:43]}  Qb4 {[%clk 0:02:56]} 9. Bb3 {[%clk 0:02:40]}  Rg8 {[%clk 0:02:51]} 10. O-O {[%clk 0:02:35]}  h6 {[%clk 0:02:49]} 11. Re1 {[%clk 0:02:28]}  e6 {[%clk 0:02:40]} 12. Ne5 {[%clk 0:02:16]}  O-O-O {[%clk 0:02:30]} 13. a3 {[%clk 0:02:09]}  Qb6 {[%clk 0:02:22]} 14. Nc4 {[%clk 0:02:05]}  Qc7 {[%clk 0:02:19]} 15. Qf3 {[%clk 0:02:04]}  g5 {[%clk 0:02:12]} 16. Ne3 {[%clk 0:01:57]}  g4 {[%clk 0:01:52]} 17. Qe2 {[%clk 0:01:47]}  Bd6 {[%clk 0:01:49]} 18. Nxf5 {[%clk 0:01:45]}  Bxh2+ {[%clk 0:01:45]} 19. Kf1 {[%clk 0:01:45]}  exf5 {[%clk 0:01:45]} 20. Bxg8 {[%clk 0:01:46]}  Rxg8 {[%clk 0:01:37]} 21. Qe6 {[%clk 0:01:44]}  f4 {[%clk 0:01:26]} 22. Ne4 {[%clk 0:01:39]}  Nxe4 {[%clk 0:01:16]} 23. Qxg8+ {[%clk 0:01:38]}  Qd8 {[%clk 0:01:12]} 24. Qxd8+ {[%clk 0:01:36]}  Kxd8 {[%clk 0:01:13]} 25. Rxe4 {[%clk 0:01:37]}  Nf6 {[%clk 0:01:11]} 26. Rxf4 {[%clk 0:01:31]}  Bxf4 {[%clk 0:01:10]} 27. Bxf4 {[%clk 0:01:32]} 1-0


[Site "https://www.chess.com"]

[Event "Titled Tuesday Blitz February 07 Early 2023"]
[White "Gharamian, Tigran"]
[Black "Andrews, Todd"]
[WhiteFideId "13301527"]
[BlackFideId "2012456"]
[WhiteElo "2601"]
[BlackElo "2220"]
[Result "1-0"]
[Round "02"]
[TimeControl "180+2"]
[Date "2023.02.07"]
[WhiteClock "0:00:55"]
[BlackClock "0:01:39"]

1. d4 {[%clk 0:02:57]}  Nf6 {[%clk 0:02:58]} 2. c4 {[%clk 0:02:56]}  c5 {[%clk 0:02:58]} 3. d5 {[%clk 0:02:56]}  b5 {[%clk 0:02:58]} 4. Nf3 {[%clk 0:02:56]}  e6 {[%clk 0:02:58]} 5. Bg5 {[%clk 0:02:55]}  Bb7 {[%clk 0:02:58]} 6. e4 {[%clk 0:02:50]}  bxc4 {[%clk 0:02:58]} 7. Bxc4 {[%clk 0:02:48]}  exd5 {[%clk 0:02:58]} 8. e5 {[%clk 0:02:34]}  dxc4 {[%clk 0:02:53]} 9. exf6 {[%clk 0:02:34]}  gxf6 {[%clk 0:02:50]} 10. Be3 {[%clk 0:02:14]}  d5 {[%clk 0:02:37]} 11. O-O {[%clk 0:02:13]}  Bd6 {[%clk 0:02:30]} 12. Bh6 {[%clk 0:02:02]}  Nd7 {[%clk 0:02:22]} 13. Nc3 {[%clk 0:01:57]}  d4 {[%clk 0:02:17]} 14. Re1+ {[%clk 0:01:55]}  Ne5 {[%clk 0:02:16]} 15. Ne4 {[%clk 0:01:51]}  Rg8 {[%clk 0:02:08]} 16. Qa4+ {[%clk 0:01:39]}  Bc6 {[%clk 0:02:07]} 17. Qxc6+ {[%clk 0:01:33]}  Ke7 {[%clk 0:02:05]} 18. Nxe5 {[%clk 0:01:21]}  fxe5 {[%clk 0:02:00]} 19. Bg5+ {[%clk 0:01:10]}  Rxg5 {[%clk 0:01:59]} 20. Nxg5 {[%clk 0:01:10]}  Rb8 {[%clk 0:01:51]} 21. Qd5 {[%clk 0:01:03]}  Qg8 {[%clk 0:01:44]} 22. Ne4 {[%clk 0:00:58]}  Rb6 {[%clk 0:01:39]} 23. Nxd6 {[%clk 0:00:56]}  Rxd6 {[%clk 0:01:38]} 24. Rxe5+ {[%clk 0:00:55]}  Kd7 {[%clk 0:01:39]} 25. Qb7+ {[%clk 0:00:55]}  Kd8 {[%clk 0:01:39]} 26. Qb8+ {[%clk 0:00:55]}  Kd7 {[%clk 0:01:39]} 27. Qxg8 {[%clk 0:00:55]} 1-0


[Site "https://www.chess.com"]

[Event "Titled Tuesday Blitz February 07 Early 2023"]
[White "Jimenez Almeida, Luis David"]
[Black "Magallanes, Rey Jomar"]
[WhiteFideId "22242244"]
[BlackFideId "5205948"]
[WhiteElo "2242"]
[BlackElo "2052"]
[Result "0-1"]
[Round "02"]
[TimeControl "180+2"]
[Date "2023.02.07"]
[WhiteClock "0:00:20"]
[BlackClock "0:00:02"]

1. e4 {[%clk 0:03:00]}  c5 {[%clk 0:02:59]} 2. Nc3 {[%clk 0:03:00]}  Nc6 {[%clk 0:02:57]} 3. g3 {[%clk 0:03:00]}  g6 {[%clk 0:02:57]} 4. Bg2 {[%clk 0:03:01]}  Bg7 {[%clk 0:02:58]} 5. d3 {[%clk 0:02:59]}  e5 {[%clk 0:02:54]} 6. Be3 {[%clk 0:02:58]}  d6 {[%clk 0:02:54]} 7. Qd2 {[%clk 0:02:54]}  Be6 {[%clk 0:02:53]} 8. Nd5 {[%clk 0:02:53]}  h5 {[%clk 0:02:51]} 9. h3 {[%clk 0:02:50]}  Qd7 {[%clk 0:02:47]} 10. c3 {[%clk 0:02:47]}  O-O-O {[%clk 0:02:46]} 11. Ne2 {[%clk 0:02:46]}  Rf8 {[%clk 0:02:36]} 12. b4 {[%clk 0:02:37]}  cxb4 {[%clk 0:02:31]} 13. Nxb4 {[%clk 0:02:25]}  Nxb4 {[%clk 0:02:12]} 14. cxb4 {[%clk 0:02:26]}  Kb8 {[%clk 0:02:11]} 15. Nc3 {[%clk 0:02:19]}  Ne7 {[%clk 0:02:09]} 16. a4 {[%clk 0:02:13]}  d5 {[%clk 0:02:06]} 17. Bc5 {[%clk 0:02:01]}  dxe4 {[%clk 0:01:50]} 18. Nxe4 {[%clk 0:01:45]}  Rd8 {[%clk 0:01:36]} 19. O-O {[%clk 0:01:40]}  Nc8 {[%clk 0:01:14]} 20. b5 {[%clk 0:01:04]}  Bxh3 {[%clk 0:01:00]} 21. a5 {[%clk 0:00:45]}  Bxg2 {[%clk 0:00:48]} 22. Kxg2 {[%clk 0:00:46]}  Qxd3 {[%clk 0:00:48]} 23. Qb4 {[%clk 0:00:46]}  Rd4 {[%clk 0:00:19]} 24. Bxd4 {[%clk 0:00:44]}  Qxe4+ {[%clk 0:00:19]} 25. f3 {[%clk 0:00:43]}  Qxd4 {[%clk 0:00:19]} 26. Qb3 {[%clk 0:00:42]}  h4 {[%clk 0:00:13]} 27. Rad1 {[%clk 0:00:34]}  Qc5 {[%clk 0:00:13]} 28. a6 {[%clk 0:00:30]}  hxg3 {[%clk 0:00:05]} 29. Kxg3 {[%clk 0:00:24]}  e4 {[%clk 0:00:02]} 30. Qxf7 {[%clk 0:00:20]}  Qg5+ {[%clk 0:00:02]} 31. Kf2 {[%clk 0:00:20]}  Rh2+ {[%clk 0:00:02]} 32. Ke1 {[%clk 0:00:20]}  Qe3# {[%clk 0:00:02]} 0-1


[Site "https://www.chess.com"]

[Event "Titled Tuesday Blitz February 07 Early 2023"]
[White "Kuchava, Ana"]
[Black "Antonios, Johnny"]
[WhiteFideId "13605348"]
[BlackFideId "5300843"]
[WhiteElo "2101"]
[BlackElo "2269"]
[Result "0-1"]
[Round "02"]
[TimeControl "180+2"]
[Date "2023.02.07"]
[WhiteClock "0:01:01"]
[BlackClock "0:01:58"]

1. d4 {[%clk 0:03:00]}  Nf6 {[%clk 0:02:59]} 2. Nf3 {[%clk 0:02:58]}  e6 {[%clk 0:03:00]} 3. c4 {[%clk 0:02:57]}  b6 {[%clk 0:03:00]} 4. a3 {[%clk 0:02:54]}  Bb7 {[%clk 0:03:00]} 5. Nc3 {[%clk 0:02:51]}  d5 {[%clk 0:03:00]} 6. cxd5 {[%clk 0:02:51]}  Nxd5 {[%clk 0:03:01]} 7. e3 {[%clk 0:02:49]}  Be7 {[%clk 0:02:59]} 8. Bd3 {[%clk 0:02:41]}  Nxc3 {[%clk 0:02:56]} 9. bxc3 {[%clk 0:02:38]}  Nd7 {[%clk 0:02:55]} 10. O-O {[%clk 0:02:36]}  c5 {[%clk 0:02:56]} 11. Qe2 {[%clk 0:02:35]}  O-O {[%clk 0:02:56]} 12. Bb2 {[%clk 0:02:30]}  Rc8 {[%clk 0:02:56]} 13. Rad1 {[%clk 0:02:22]}  Qc7 {[%clk 0:02:56]} 14. e4 {[%clk 0:02:14]}  Qf4 {[%clk 0:02:56]} 15. Qe3 {[%clk 0:02:10]}  Qg4 {[%clk 0:02:52]} 16. h3 {[%clk 0:02:04]}  Qh5 {[%clk 0:02:52]} 17. Rfe1 {[%clk 0:01:46]}  Rfe8 {[%clk 0:02:47]} 18. Bb5 {[%clk 0:01:36]}  cxd4 {[%clk 0:02:05]} 19. cxd4 {[%clk 0:01:32]}  Qxb5 {[%clk 0:02:04]} 20. Qe2 {[%clk 0:01:07]}  Qxe2 {[%clk 0:02:02]} 21. Rxe2 {[%clk 0:01:07]}  Nf6 {[%clk 0:02:00]} 22. e5 {[%clk 0:01:03]}  Bxf3 {[%clk 0:01:58]} 23. gxf3 {[%clk 0:01:01]}  Nd5 {[%clk 0:01:58]} 0-1


[Site "https://www.chess.com"]

[Event "Titled Tuesday Blitz February 07 Early 2023"]
[White "Bongo Akanga Ndjila, Barthelemy"]
[Black "Hajiyev, Kanan"]
[WhiteFideId "10609431"]
[BlackFideId "13404148"]
[WhiteElo "1824"]
[BlackElo "2197"]
[Result "1-0"]
[Round "02"]
[TimeControl "180+2"]
[Date "2023.02.07"]
[WhiteClock "0:00:38"]
[BlackClock "0:00:26"]

1. d4 {[%clk 0:02:54]}  f5 {[%clk 0:02:54]} 2. Qd3 {[%clk 0:02:53]}  e6 {[%clk 0:02:47]} 3. g4 {[%clk 0:02:52]}  fxg4 {[%clk 0:02:43]} 4. h3 {[%clk 0:02:52]}  g3 {[%clk 0:02:23]} 5. Qxg3 {[%clk 0:02:50]}  Nf6 {[%clk 0:02:20]} 6. Nf3 {[%clk 0:02:49]}  Nc6 {[%clk 0:02:19]} 7. Nc3 {[%clk 0:02:45]}  d5 {[%clk 0:02:12]} 8. Bg5 {[%clk 0:02:43]}  Bd6 {[%clk 0:02:10]} 9. Qh4 {[%clk 0:02:40]}  Bd7 {[%clk 0:02:05]} 10. O-O-O {[%clk 0:02:35]}  Qe7 {[%clk 0:02:05]} 11. e4 {[%clk 0:02:28]}  dxe4 {[%clk 0:01:57]} 12. Nxe4 {[%clk 0:02:27]}  O-O {[%clk 0:01:54]} 13. Bc4 {[%clk 0:02:12]}  Qf7 {[%clk 0:01:41]} 14. Nxf6+ {[%clk 0:01:53]}  gxf6 {[%clk 0:01:42]} 15. Bh6 {[%clk 0:01:53]}  Kh8 {[%clk 0:01:35]} 16. d5 {[%clk 0:01:52]}  Ne5 {[%clk 0:01:27]} 17. Nxe5 {[%clk 0:01:48]}  Bxe5 {[%clk 0:01:25]} 18. Bxf8 {[%clk 0:01:46]}  Rxf8 {[%clk 0:01:22]} 19. f4 {[%clk 0:01:46]}  Bd6 {[%clk 0:01:17]} 20. dxe6 {[%clk 0:01:41]}  Bxe6 {[%clk 0:01:17]} 21. Bd3 {[%clk 0:01:25]}  Bxa2 {[%clk 0:01:11]} 22. Rde1 {[%clk 0:01:18]}  Rg8 {[%clk 0:01:00]} 23. Rhg1 {[%clk 0:01:17]}  Rxg1 {[%clk 0:00:50]} 24. Rxg1 {[%clk 0:01:17]}  Bc5 {[%clk 0:00:51]} 25. Re1 {[%clk 0:01:15]}  f5 {[%clk 0:00:34]} 26. Re5 {[%clk 0:01:09]}  Be6 {[%clk 0:00:31]} 27. Rxc5 {[%clk 0:01:00]}  Kg7 {[%clk 0:00:29]} 28. Qg5+ {[%clk 0:00:57]}  Kf8 {[%clk 0:00:30]} 29. Bxf5 {[%clk 0:00:47]}  b6 {[%clk 0:00:28]} 30. Re5 {[%clk 0:00:46]}  Bd7 {[%clk 0:00:27]} 31. Bxd7 {[%clk 0:00:40]}  Qxd7 {[%clk 0:00:26]} 32. Qf5+ {[%clk 0:00:38]} 1-0


[Site "https://www.chess.com"]

[Event "Titled Tuesday Blitz February 07 Early 2023"]
[White "Manukian, Artak"]
[Black "Winkels, Marcel"]
[WhiteFideId "13301373"]
[BlackFideId "1003887"]
[WhiteElo "2196"]
[BlackElo "1960"]
[Result "1-0"]
[Round "02"]
[TimeControl "180+2"]
[Date "2023.02.07"]
[WhiteClock "0:00:25"]
[BlackClock "0:00:03"]

1. e4 {[%clk 0:02:53]}  c5 {[%clk 0:02:59]} 2. Nf3 {[%clk 0:02:52]}  e6 {[%clk 0:02:59]} 3. c3 {[%clk 0:02:52]}  d5 {[%clk 0:02:58]} 4. e5 {[%clk 0:02:52]}  d4 {[%clk 0:02:55]} 5. cxd4 {[%clk 0:02:51]}  cxd4 {[%clk 0:02:55]} 6. Bb5+ {[%clk 0:02:51]}  Nc6 {[%clk 0:02:51]} 7. Bxc6+ {[%clk 0:02:51]}  bxc6 {[%clk 0:02:50]} 8. Qa4 {[%clk 0:02:52]}  Bb7 {[%clk 0:02:36]} 9. Nxd4 {[%clk 0:02:50]}  Qd5 {[%clk 0:02:26]} 10. O-O {[%clk 0:02:41]}  Ne7 {[%clk 0:02:17]} 11. Nb3 {[%clk 0:02:31]}  Qxe5 {[%clk 0:02:04]} 12. d4 {[%clk 0:02:31]}  Qc7 {[%clk 0:02:03]} 13. Na5 {[%clk 0:02:23]}  Nd5 {[%clk 0:02:01]} 14. Nc3 {[%clk 0:02:22]}  Nxc3 {[%clk 0:01:59]} 15. bxc3 {[%clk 0:02:22]}  Be7 {[%clk 0:01:59]} 16. Rb1 {[%clk 0:02:07]}  O-O {[%clk 0:01:57]} 17. Rxb7 {[%clk 0:02:05]}  Qd6 {[%clk 0:01:49]} 18. Nc4 {[%clk 0:02:02]}  Qd8 {[%clk 0:01:46]} 19. Ne5 {[%clk 0:01:55]}  Bf6 {[%clk 0:01:38]} 20. Qxc6 {[%clk 0:01:49]}  Rc8 {[%clk 0:01:37]} 21. Qd7 {[%clk 0:01:48]}  Bxe5 {[%clk 0:01:15]} 22. dxe5 {[%clk 0:01:44]}  Rxc3 {[%clk 0:01:14]} 23. Qxd8 {[%clk 0:01:42]}  Rxd8 {[%clk 0:01:13]} 24. Rxa7 {[%clk 0:01:43]}  h6 {[%clk 0:01:10]} 25. Be3 {[%clk 0:01:24]}  Rd5 {[%clk 0:01:06]} 26. h3 {[%clk 0:01:16]}  Rc2 {[%clk 0:01:02]} 27. Bf4 {[%clk 0:01:14]}  g5 {[%clk 0:00:55]} 28. Bg3 {[%clk 0:01:13]}  Rd3 {[%clk 0:00:54]} 29. Ra1 {[%clk 0:01:10]}  h5 {[%clk 0:00:49]} 30. h4 {[%clk 0:01:08]}  g4 {[%clk 0:00:41]} 31. a4 {[%clk 0:01:05]}  Rcd2 {[%clk 0:00:41]} 32. a5 {[%clk 0:01:04]}  Rd1+ {[%clk 0:00:40]} 33. Rxd1 {[%clk 0:01:03]}  Rxd1+ {[%clk 0:00:41]} 34. Kh2 {[%clk 0:01:04]}  Ra1 {[%clk 0:00:41]} 35. Bf4 {[%clk 0:01:03]}  Kg7 {[%clk 0:00:39]} 36. Bd2 {[%clk 0:01:00]}  Kg6 {[%clk 0:00:37]} 37. Rd7 {[%clk 0:00:57]}  Ra2 {[%clk 0:00:35]} 38. Kg3 {[%clk 0:00:56]}  Kf5 {[%clk 0:00:33]} 39. Rxf7+ {[%clk 0:00:53]}  Kxe5 {[%clk 0:00:33]} 40. Rd7 {[%clk 0:00:50]}  Ra3+ {[%clk 0:00:30]} 41. f3 {[%clk 0:00:49]}  gxf3 {[%clk 0:00:23]} 42. gxf3 {[%clk 0:00:50]}  Ra2 {[%clk 0:00:21]} 43. Bc3+ {[%clk 0:00:45]}  Kf5 {[%clk 0:00:19]} 44. Rh7 {[%clk 0:00:43]}  Kg6 {[%clk 0:00:18]} 45. Rc7 {[%clk 0:00:39]}  Kf5 {[%clk 0:00:18]} 46. Rc5+ {[%clk 0:00:39]}  Kg6 {[%clk 0:00:17]} 47. Rg5+ {[%clk 0:00:39]}  Kf7 {[%clk 0:00:16]} 48. Rxh5 {[%clk 0:00:38]}  Ra3 {[%clk 0:00:13]} 49. Rc5 {[%clk 0:00:38]}  Ke7 {[%clk 0:00:12]} 50. Bb4 {[%clk 0:00:35]}  Ra4 {[%clk 0:00:11]} 51. Rb5+ {[%clk 0:00:31]}  Kf6 {[%clk 0:00:10]} 52. Bc3+ {[%clk 0:00:29]}  Ke7 {[%clk 0:00:09]} 53. h5 {[%clk 0:00:29]}  Kf7 {[%clk 0:00:08]} 54. Rb7+ {[%clk 0:00:25]}  Kg8 {[%clk 0:00:07]} 55. h6 {[%clk 0:00:25]}  Rc4 {[%clk 0:00:03]} 56. h7+ {[%clk 0:00:25]} 1-0


[Site "https://www.chess.com"]

[Event "Titled Tuesday Blitz February 07 Early 2023"]
[White "Kiseleva, Arina"]
[Black "Guliev, Logman"]
[WhiteFideId "4164989"]
[BlackFideId "13400061"]
[WhiteElo "1962"]
[BlackElo "2250"]
[Result "0-1"]
[Round "02"]
[TimeControl "180+2"]
[Date "2023.02.07"]
[WhiteClock "0:00:01"]
[BlackClock "0:01:00"]

1. d4 {[%clk 0:03:00]}  Nf6 {[%clk 0:02:58]} 2. Nf3 {[%clk 0:03:00]}  g6 {[%clk 0:02:58]} 3. c4 {[%clk 0:03:00]}  Bg7 {[%clk 0:02:58]} 4. Nc3 {[%clk 0:03:01]}  d6 {[%clk 0:02:58]} 5. e4 {[%clk 0:03:00]}  O-O {[%clk 0:02:58]} 6. h3 {[%clk 0:03:00]}  e5 {[%clk 0:02:57]} 7. d5 {[%clk 0:02:47]}  a5 {[%clk 0:02:55]} 8. Bd3 {[%clk 0:02:47]}  Na6 {[%clk 0:02:54]} 9. Be3 {[%clk 0:02:46]}  Nh5 {[%clk 0:02:52]} 10. Qd2 {[%clk 0:02:44]}  Nc5 {[%clk 0:02:51]} 11. Bc2 {[%clk 0:02:36]}  Bd7 {[%clk 0:02:48]} 12. g4 {[%clk 0:02:33]}  Nf4 {[%clk 0:02:47]} 13. O-O-O {[%clk 0:02:16]}  a4 {[%clk 0:02:44]} 14. Rdg1 {[%clk 0:01:56]}  a3 {[%clk 0:02:32]} 15. b3 {[%clk 0:01:55]}  c6 {[%clk 0:02:31]} 16. h4 {[%clk 0:01:51]}  Qa5 {[%clk 0:02:29]} 17. h5 {[%clk 0:01:45]}  b5 {[%clk 0:02:26]} 18. dxc6 {[%clk 0:01:07]}  Bxc6 {[%clk 0:02:22]} 19. cxb5 {[%clk 0:01:04]}  Bxb5 {[%clk 0:02:20]} 20. Nxb5 {[%clk 0:01:04]}  Qxb5 {[%clk 0:02:19]} 21. Kb1 {[%clk 0:01:05]}  Rfd8 {[%clk 0:01:47]} 22. hxg6 {[%clk 0:00:53]}  hxg6 {[%clk 0:01:46]} 23. Ng5 {[%clk 0:00:42]}  d5 {[%clk 0:01:42]} 24. Bxf4 {[%clk 0:00:33]}  dxe4 {[%clk 0:01:37]} 25. Qe3 {[%clk 0:00:25]}  exf4 {[%clk 0:01:37]} 26. Qxf4 {[%clk 0:00:26]}  Ra7 {[%clk 0:01:22]} 27. Rd1 {[%clk 0:00:23]}  Nd3 {[%clk 0:01:13]} 28. Qh2 {[%clk 0:00:07]}  Qxg5 {[%clk 0:01:04]} 29. Qh7+ {[%clk 0:00:05]}  Kf8 {[%clk 0:01:04]} 30. Bxd3 {[%clk 0:00:04]}  exd3 {[%clk 0:01:02]} 31. Rhe1 {[%clk 0:00:01]}  Qf6 {[%clk 0:01:00]} 0-1


[Site "https://www.chess.com"]

[Event "Titled Tuesday Blitz February 07 Early 2023"]
[White "Sai Han Thiha"]
[Black "Sabar, Ethmane Daouda"]
[WhiteFideId "13012290"]
[BlackFideId "19600097"]
[WhiteElo "2070"]
[BlackElo "2040"]
[Result "1-0"]
[Round "02"]
[TimeControl "180+2"]
[Date "2023.02.07"]
[WhiteClock "0:01:25"]
[BlackClock "0:02:24"]

1. d4 {[%clk 0:03:00]}  d5 {[%clk 0:02:39]} 2. c4 {[%clk 0:03:01]}  e5 {[%clk 0:02:39]} 3. dxe5 {[%clk 0:03:00]}  d4 {[%clk 0:02:40]} 4. Nf3 {[%clk 0:03:01]}  Bg4 {[%clk 0:02:39]} 5. Qxd4 {[%clk 0:02:40]}  Bxf3 {[%clk 0:02:30]} 6. Qxd8+ {[%clk 0:02:38]}  Kxd8 {[%clk 0:02:31]} 7. gxf3 {[%clk 0:02:33]}  Nc6 {[%clk 0:02:32]} 8. f4 {[%clk 0:01:52]}  f6 {[%clk 0:02:31]} 9. exf6 {[%clk 0:01:46]}  Nxf6 {[%clk 0:02:31]} 10. e3 {[%clk 0:01:29]}  Bb4+ {[%clk 0:02:30]} 11. Nd2 {[%clk 0:01:26]}  Ke7 {[%clk 0:02:31]} 12. a3 {[%clk 0:01:25]}  Bxd2+ {[%clk 0:02:27]} 13. Bxd2 {[%clk 0:01:26]}  Rhd8 {[%clk 0:02:26]} 14. Bg2 {[%clk 0:01:25]}  Na5 {[%clk 0:02:24]} 15. Bxa5 {[%clk 0:01:25]} 1-0


[Site "https://www.chess.com"]

[Event "Titled Tuesday Blitz February 07 Early 2023"]
[White "Delorme, Alban"]
[Black "Przybylski, Wojciech"]
[WhiteFideId "623636"]
[BlackFideId "1117599"]
[WhiteElo "2298"]
[BlackElo "2321"]
[Result "0-1"]
[Round "02"]
[TimeControl "180+2"]
[Date "2023.02.07"]
[WhiteClock "0:00:05"]
[BlackClock "0:00:06"]

1. e4 {[%clk 0:03:00]}  c5 {[%clk 0:02:58]} 2. Nf3 {[%clk 0:03:00]}  e6 {[%clk 0:02:58]} 3. c3 {[%clk 0:03:00]}  d5 {[%clk 0:02:56]} 4. exd5 {[%clk 0:03:00]}  Qxd5 {[%clk 0:02:55]} 5. d4 {[%clk 0:03:00]}  Nc6 {[%clk 0:02:47]} 6. Be2 {[%clk 0:02:58]}  Nf6 {[%clk 0:02:45]} 7. O-O {[%clk 0:02:57]}  Be7 {[%clk 0:02:42]} 8. Na3 {[%clk 0:02:44]}  O-O {[%clk 0:02:40]} 9. Nb5 {[%clk 0:02:42]}  Qd8 {[%clk 0:02:20]} 10. dxc5 {[%clk 0:02:29]}  Bxc5 {[%clk 0:02:17]} 11. Bg5 {[%clk 0:02:23]}  Be7 {[%clk 0:02:02]} 12. Qc2 {[%clk 0:02:07]}  a6 {[%clk 0:01:59]} 13. Rad1 {[%clk 0:02:04]}  Qb6 {[%clk 0:01:58]} 14. Nd6 {[%clk 0:01:38]}  Qc7 {[%clk 0:01:48]} 15. Ne4 {[%clk 0:01:25]}  Nxe4 {[%clk 0:01:30]} 16. Qxe4 {[%clk 0:01:26]}  f5 {[%clk 0:01:10]} 17. Qh4 {[%clk 0:01:25]}  h6 {[%clk 0:01:07]} 18. Bxe7 {[%clk 0:01:18]}  Nxe7 {[%clk 0:01:05]} 19. Rfe1 {[%clk 0:01:06]}  Ng6 {[%clk 0:00:58]} 20. Qh5 {[%clk 0:01:01]}  Nf4 {[%clk 0:00:54]} 21. Qh4 {[%clk 0:00:57]}  Rf6 {[%clk 0:00:33]} 22. Nd4 {[%clk 0:00:38]}  g5 {[%clk 0:00:28]} 23. Qg3 {[%clk 0:00:36]}  Nxe2+ {[%clk 0:00:28]} 24. Rxe2 {[%clk 0:00:33]}  Qxg3 {[%clk 0:00:28]} 25. hxg3 {[%clk 0:00:32]}  Kf7 {[%clk 0:00:28]} 26. Nf3 {[%clk 0:00:31]}  Ke7 {[%clk 0:00:25]} 27. Ne5 {[%clk 0:00:31]}  f4 {[%clk 0:00:15]} 28. gxf4 {[%clk 0:00:26]}  Rxf4 {[%clk 0:00:14]} 29. g3 {[%clk 0:00:25]}  Rf6 {[%clk 0:00:14]} 30. Red2 {[%clk 0:00:22]}  Rf5 {[%clk 0:00:09]} 31. Nc4 {[%clk 0:00:17]}  b5 {[%clk 0:00:07]} 32. Nd6 {[%clk 0:00:18]}  Re5 {[%clk 0:00:04]} 33. c4 {[%clk 0:00:08]}  bxc4 {[%clk 0:00:03]} 34. Nxc4 {[%clk 0:00:09]}  Rc5 {[%clk 0:00:03]} 35. Ne3 {[%clk 0:00:05]}  Rb8 {[%clk 0:00:03]} 36. b3 {[%clk 0:00:05]}  Rb6 {[%clk 0:00:03]} 37. Rd8 {[%clk 0:00:05]}  Rbc6 {[%clk 0:00:03]} 38. Rh8 {[%clk 0:00:04]}  Rc3 {[%clk 0:00:03]} 39. Rxh6 {[%clk 0:00:04]}  g4 {[%clk 0:00:03]} 40. Nxg4 {[%clk 0:00:03]}  Rc1 {[%clk 0:00:02]} 41. Rxc1 {[%clk 0:00:03]}  Rxc1+ {[%clk 0:00:02]} 42. Kg2 {[%clk 0:00:02]}  Bb7+ {[%clk 0:00:02]} 43. f3 {[%clk 0:00:03]}  Rc2+ {[%clk 0:00:02]} 44. Nf2 {[%clk 0:00:03]}  Kd6 {[%clk 0:00:02]} 45. Rh7 {[%clk 0:00:04]}  Bd5 {[%clk 0:00:02]} 46. Ra7 {[%clk 0:00:04]}  Rc3 {[%clk 0:00:02]} 47. Rxa6+ {[%clk 0:00:04]}  Ke5 {[%clk 0:00:01]} 48. Ra4 {[%clk 0:00:03]}  Kd6 {[%clk 0:00:01]} 49. Rf4 {[%clk 0:00:02]}  Ke5 {[%clk 0:00:02]} 50. g4 {[%clk 0:00:02]}  Rc2 {[%clk 0:00:02]} 51. Kg3 {[%clk 0:00:02]}  Rxf2 {[%clk 0:00:02]} 52. Kxf2 {[%clk 0:00:02]}  Kxf4 {[%clk 0:00:02]} 53. b4 {[%clk 0:00:02]}  Bxf3 {[%clk 0:00:02]} 54. b5 {[%clk 0:00:02]}  Bd5 {[%clk 0:00:02]} 55. a4 {[%clk 0:00:02]}  Kxg4 {[%clk 0:00:02]} 56. b6 {[%clk 0:00:03]}  Bb7 {[%clk 0:00:02]} 57. a5 {[%clk 0:00:04]}  Kf4 {[%clk 0:00:03]} 58. Ke2 {[%clk 0:00:04]}  Ke4 {[%clk 0:00:03]} 59. Kd2 {[%clk 0:00:04]}  Kd4 {[%clk 0:00:04]} 60. Ke2 {[%clk 0:00:05]}  Ba6+ {[%clk 0:00:04]} 61. Kd2 {[%clk 0:00:05]}  e5 {[%clk 0:00:04]} 62. Kc2 {[%clk 0:00:05]}  e4 {[%clk 0:00:05]} 63. Kd2 {[%clk 0:00:05]}  e3+ {[%clk 0:00:05]} 64. Kc2 {[%clk 0:00:06]}  Ke4 {[%clk 0:00:05]} 65. Kd1 {[%clk 0:00:06]}  Kf3 {[%clk 0:00:05]} 66. Ke1 {[%clk 0:00:07]}  Bb7 {[%clk 0:00:06]} 67. Kf1 {[%clk 0:00:07]}  e2+ {[%clk 0:00:06]} 68. Ke1 {[%clk 0:00:07]}  Ba6 {[%clk 0:00:06]} 69. Kd2 {[%clk 0:00:05]}  Kf2 {[%clk 0:00:06]} 0-1


[Site "https://www.chess.com"]

[Event "Titled Tuesday Blitz February 07 Early 2023"]
[White "Mohammadian, Mohammad"]
[Black "Buchenau, Frank"]
[WhiteFideId "12566055"]
[BlackFideId "4604350"]
[WhiteElo "1398"]
[BlackElo "2222"]
[Result "0-1"]
[Round "02"]
[TimeControl "180+2"]
[Date "2023.02.07"]
[WhiteClock "0:00:25"]
[BlackClock "0:00:50"]

1. e4 {[%clk 0:03:00]}  e6 {[%clk 0:02:58]} 2. d4 {[%clk 0:02:59]}  d5 {[%clk 0:02:58]} 3. Nd2 {[%clk 0:02:55]}  c5 {[%clk 0:02:55]} 4. Ne2 {[%clk 0:02:51]}  Nc6 {[%clk 0:02:36]} 5. c3 {[%clk 0:02:46]}  cxd4 {[%clk 0:02:31]} 6. cxd4 {[%clk 0:02:40]}  Nb4 {[%clk 0:02:11]} 7. Ng3 {[%clk 0:02:30]}  dxe4 {[%clk 0:02:08]} 8. Ndxe4 {[%clk 0:02:28]}  Qxd4 {[%clk 0:02:04]} 9. Qxd4 {[%clk 0:02:27]}  Nc2+ {[%clk 0:02:04]} 10. Kd1 {[%clk 0:02:20]}  Nxd4 {[%clk 0:02:05]} 11. Bd3 {[%clk 0:02:18]}  Be7 {[%clk 0:01:53]} 12. Be3 {[%clk 0:02:16]}  Nc6 {[%clk 0:01:47]} 13. Ke2 {[%clk 0:02:16]}  Nf6 {[%clk 0:01:47]} 14. h3 {[%clk 0:02:10]}  Nd5 {[%clk 0:01:42]} 15. Bd2 {[%clk 0:02:03]}  O-O {[%clk 0:01:37]} 16. Rhd1 {[%clk 0:02:01]}  Ne5 {[%clk 0:01:32]} 17. Bc2 {[%clk 0:01:52]}  b6 {[%clk 0:01:31]} 18. Rac1 {[%clk 0:01:51]}  Ba6+ {[%clk 0:01:30]} 19. Ke1 {[%clk 0:01:44]}  Rac8 {[%clk 0:01:30]} 20. Nc3 {[%clk 0:01:39]}  Nb4 {[%clk 0:01:22]} 21. a3 {[%clk 0:01:34]}  Nbd3+ {[%clk 0:01:20]} 22. Bxd3 {[%clk 0:01:34]}  Nxd3+ {[%clk 0:01:20]} 23. Kf1 {[%clk 0:01:23]}  Nxc1+ {[%clk 0:01:20]} 24. Kg1 {[%clk 0:01:21]}  Rfd8 {[%clk 0:01:19]} 25. Rxc1 {[%clk 0:01:20]}  Rxd2 {[%clk 0:01:18]} 26. Nge4 {[%clk 0:01:18]}  Rxb2 {[%clk 0:01:18]} 27. Rd1 {[%clk 0:01:15]}  f5 {[%clk 0:01:15]} 28. Rd7 {[%clk 0:01:04]}  fxe4 {[%clk 0:01:13]} 29. Rxe7 {[%clk 0:01:03]}  Rxc3 {[%clk 0:01:12]} 30. Rxa7 {[%clk 0:01:02]}  Rc1+ {[%clk 0:01:11]} 31. Kh2 {[%clk 0:01:01]}  Bf1 {[%clk 0:01:11]} 32. Ra8+ {[%clk 0:00:58]}  Kf7 {[%clk 0:01:10]} 33. Ra7+ {[%clk 0:00:58]}  Kf6 {[%clk 0:01:10]} 34. Ra4 {[%clk 0:00:52]}  Rxf2 {[%clk 0:01:06]} 35. Kg3 {[%clk 0:00:46]}  Rxg2+ {[%clk 0:01:04]} 36. Kh4 {[%clk 0:00:45]}  Rc3 {[%clk 0:00:51]} 37. Rxe4 {[%clk 0:00:42]}  g5+ {[%clk 0:00:51]} 38. Kh5 {[%clk 0:00:25]}  Rxh3+ {[%clk 0:00:50]} 39. Rh4 {[%clk 0:00:25]}  Rxh4# {[%clk 0:00:50]} 0-1


[Site "https://www.chess.com"]